bitfinex/quotes_SOLUSD_20260305
["timestamp","ask_amount","ask_price","bid_price","bid_amount"]
[1772722723570,3.49799879,91.261,91.184,0.03265314]
[1772722723866,3.49799879,91.261,91.186,0.03265314]
[1772722724072,3.49799879,91.261,91.188,0.03983886]
[1772722724372,3.49799879,91.259,91.192,0.03983886]
[1772722725857,38.35196142,91.26,91.19,10.9661147]
[1772722725858,3.49799879,91.255,91.19,10.9661147]
[1772722726066,3.49799879,91.255,91.19,38.38140146]
[1772722726472,3.49799879,91.253,91.19,38.38140146]
[1772722726657,3.49799879,91.253,91.191,0.05396366]
[1772722726969,3.49799879,91.253,91.19,10.9661147]
[1772722727473,3.49799879,91.253,91.189,3.07924218]
[1772722727474,3.49799879,91.249,91.189,3.07924218]
[1772722727655,3.49799879,91.249,91.182,10.96700387]
[1772722727858,3.49799879,91.249,91.172,0.06776584]
[1772722728070,3.49799879,91.229,91.171,10.96840003]
[1772722728252,3.49799879,91.229,91.172,0.06776584]
[1772722728566,12.06410369,91.26,91.174,0.06776584]
[1772722728567,10.96020144,91.24,91.174,0.06776584]
[1772722728768,3.49799879,91.239,91.174,0.06776584]
[1772722728972,3.49799879,91.267,91.176,0.08125278]
[1772722729168,3.49799879,91.267,91.178,0.08125278]
[1772722729371,39.44577981,91.268,91.178,0.08125278]
[1772722729372,3.49799879,91.259,91.178,0.08125278]
[1772722729569,3.49799879,91.257,91.178,0.08125278]
[1772722729768,3.49799879,91.255,91.178,0.08125278]
[1772722730073,3.49799879,91.255,91.181,0.08788029]
[1772722730255,3.49799879,91.253,91.181,0.08788029]
[1772722730454,3.49799879,91.251,91.181,38.47307018]
[1772722730667,3.49799879,91.251,91.182,0.08788029]
[1772722731373,3.49799879,91.251,91.181,38.9046427]
[1772722732072,3.49799879,91.251,91.181,92.64390855]
[1772722732301,3.49799879,91.251,91.181,81.67671144]
[1772722732475,3.54193894,91.249,91.181,82.77343115]
[1772722732674,3.54193894,91.249,91.181,37.80792299]
[1772722733675,3.54193894,91.247,91.181,37.80792299]
[1772722733978,3.54193894,91.245,91.182,0.02575751]
[1772722734184,3.54193894,91.261,91.184,0.02575751]
[1772722734383,3.54193894,91.261,91.186,0.02575751]
[1772722734576,3.54193894,91.259,91.186,38.38308511]
[1772722734779,3.54193894,91.257,91.186,38.38308511]
[1772722734977,3.54193894,91.249,91.186,38.38308511]
[1772722735174,3.54193894,91.247,91.186,38.38308511]
[1772722735379,1.09703252,91.248,91.186,38.38308511]
[1772722735380,3.54193894,91.245,91.187,0.03201305]
[1772722735582,3.54193894,91.245,91.186,38.38308511]
[1772722736066,3.54193894,91.245,91.186,10.96659574]
[1772722736473,3.54193894,91.241,91.186,27.41648937]
[1772722737178,3.54193894,91.239,91.181,10.96719711]
[1772722737361,3.54193894,91.237,91.181,10.96719711]
[1772722737562,3.54193894,91.235,91.18,11.46723519]
[1772722737778,3.54193894,91.233,91.18,11.46723519]
[1772722738086,3.54193894,91.231,91.18,11.46723519]
[1772722738271,3.54193894,91.231,91.18,38.38552867]
[1772722738474,3.54193894,91.229,91.174,0.05040203]
[1772722739582,3.54193894,91.229,91.157,0.05639974]
[1772722739881,3.54193894,91.229,91.156,38.39571722]
[1772722739882,3.54193894,91.219,91.156,38.39571722]
[1772722740177,3.54193894,91.219,91.157,0.06232856]
[1772722740566,3.54193894,91.217,91.157,0.06232856]
[1772722740772,3.54193894,91.217,91.156,10.97020492]
[1772722741087,3.54193894,91.209,91.156,10.97020492]
[1772722741460,3.54193894,91.209,91.157,0.06818928]
[1772722742484,10.96395053,91.208,91.157,0.06818928]
[1772722742686,3.54193894,91.207,91.157,0.06818928]
[1772722743071,3.54193894,91.207,91.137,0.07970954]
[1772722743369,3.54193894,91.207,91.119,1.09746595]
[1772722743370,3.54193894,91.189,91.127,2.91886217]
[1772722743565,3.54193894,91.169,91.127,2.91886217]
[1772722743795,10.96707117,91.2,91.079,2.99857171]
[1772722743796,10.96707117,91.14,91.079,2.99857171]
[1772722743995,3.39666085,91.129,91.071,10.98044382]
[1772722744291,10.96707117,91.12,91.066,10.98097006]
[1772722744490,4.82477569,91.172,91.05,2.74284034]
[1772722744491,3.39666085,91.109,91.05,2.74284034]
[1772722744807,10.96707117,91.14,91.029,3.20423279]
[1772722744808,3.39666085,91.089,91.029,3.20423279]
[1772722744971,3.39666085,91.089,91.038,30.67069361]
[1772722745172,3.39666085,91.107,91.039,3.20982885]
[1772722745391,3.39666085,91.099,91.03,11.18538943]
[1772722745591,3.39666085,91.099,91.03,38.64886301]
[1772722745794,3.56771266,91.092,91.04,0.70294376]
[1772722745973,3.56771266,91.089,91.04,0.70294376]
[1772722746890,3.56771266,91.087,91.041,10.98406212]
[1772722747277,3.56771266,91.087,91.04,0.70294376]
[1772722747796,38.4243808,91.088,91.04,0.70294376]
[1772722747797,3.56771266,91.079,91.04,0.70294376]
[1772722748095,3.56771266,91.059,90.995,38.46365184]
[1772722748391,10.96707117,91.06,90.994,5.62117859]
[1772722748392,3.56771266,91.049,90.994,5.62117859]
[1772722748588,3.56771266,91.049,90.995,10.98961481]
[1772722748888,3.56771266,91.047,90.995,10.98961481]
[1772722749193,3.56771266,91.047,90.994,2.24883483]
[1772722749399,38.44126174,91.048,90.994,2.24883483]
[1772722749400,3.56771266,91.039,90.994,2.24883483]
[1772722749780,3.56771266,91.029,90.956,10.99432692]
[1772722750092,3.56771266,91.029,90.957,3.37234376]
[1772722750795,3.56771266,91.027,90.959,3.37234376]
[1772722751179,3.56771266,91.027,90.962,3.37234376]
[1772722751683,3.56771266,91.027,90.963,3.37234376]
[1772722751997,3.56771266,91.043,90.969,3.37234376]
[1772722752182,3.56771266,91.043,90.971,3.37234376]
[1772722752578,3.56771266,91.043,90.972,3.37234376]
[1772722752780,3.56771266,91.041,90.976,3.37234376]
[1772722752980,3.56771266,91.041,90.978,3.37234376]
[1772722753309,3.56771266,91.054,90.988,3.37234376]
[1772722753510,27.44799777,91.082,90.992,3.37234376]
[1772722753701,3.56771266,91.068,91.0,3.37234376]
[1772722754395,3.56771266,91.068,91.001,3.37234376]
[1772722754698,3.56771266,91.079,90.979,3.6566669]
[1772722754903,3.56771266,91.079,90.978,3.69383402]
[1772722754904,3.56771266,91.077,90.982,3.6566669]
[1772722755093,3.56771266,91.077,90.99,3.37234376]
[1772722755405,3.56771266,91.075,90.99,3.37234376]
[1772722755584,1.09703252,91.076,90.99,3.37234376]
[1772722755585,3.56771266,91.073,90.99,3.37234376]
[1772722756182,3.56771266,91.071,90.99,3.37234376]
[1772722756384,3.56771266,91.059,90.996,3.37234376]
[1772722756707,3.56771266,91.049,90.981,38.46957056]
[1772722756913,3.56771266,91.047,90.981,27.47826469]
[1772722757091,3.56771266,91.047,90.982,3.37234376]
[1772722757400,3.56771266,91.047,90.981,27.47826469]
[1772722757789,3.56771266,91.047,90.982,3.37234376]
[1772722757993,3.56771266,91.045,90.982,3.37234376]
[1772722758393,3.56771266,91.058,90.983,3.37234376]
[1772722758712,3.56771266,91.054,90.983,3.37234376]
[1772722758886,1.09703252,91.069,90.976,153.88673934]
[1772722758887,3.35855398,91.052,90.985,3.60543291]
[1772722759601,3.35855398,91.049,90.984,38.46830211]
[1772722759798,3.35855398,91.047,90.984,38.46830211]
[1772722759993,3.35855398,91.039,90.984,38.46830211]
[1772722760195,3.35855398,91.037,90.984,10.99094346]
[1772722760396,82.3696089,91.053,90.984,10.99094346]
[1772722760397,3.35855398,91.029,90.984,10.99094346]
[1772722760598,3.35855398,91.029,90.985,3.60543291]
[1772722760802,3.35855398,91.029,90.99,0.5]
[1772722761207,3.35855398,91.029,90.991,38.46534272]
[1772722762211,3.35855398,91.056,90.992,3.60543291]
[1772722762412,43.90163737,91.113,90.995,3.60543291]
[1772722762413,3.35855398,91.089,90.995,3.60543291]
[1772722762725,3.35855398,91.087,90.999,3.60543291]
[1772722762894,3.35855398,91.085,90.999,3.60543291]
[1772722763095,3.35855398,91.075,90.999,3.60543291]
[1772722763290,3.35855398,91.073,90.999,3.60543291]
[1772722763501,3.35855398,91.073,90.994,3.69383402]
[1772722763502,3.35855398,91.071,91.001,3.60543291]
[1772722763995,3.35855398,91.065,91.001,3.60543291]
[1772722764197,3.35855398,91.063,91.001,3.60543291]
[1772722764412,3.35855398,91.061,91.001,3.60543291]
[1772722765501,3.35855398,91.059,91.003,3.60543291]
[1772722766897,3.35855398,91.059,91.002,38.46069316]
[1772722767106,3.32936645,91.057,91.002,38.46069316]
[1772722767396,3.32936645,91.055,91.002,38.46069316]
[1772722767611,38.43788436,91.056,90.99,4.19383402]
[1772722767612,3.32936645,91.049,90.994,10.98969039]
[1772722767807,3.32936645,91.037,90.974,10.9921516]
[1772722768110,3.32936645,91.035,90.98,27.47856671]
[1772722768407,3.32936645,91.029,90.98,27.47856671]
[1772722768610,3.32936645,91.027,90.977,4.89]
[1772722768803,3.32936645,91.019,90.974,10.9921516]
[1772722769203,1.09703252,91.044,90.961,3.59233735]
[1772722769204,3.32936645,91.017,90.961,3.59233735]
[1772722769598,3.32936645,91.015,90.963,3.59233735]
[1772722770496,3.32936645,91.015,90.962,38.47760602]
[1772722770899,3.32936645,91.015,90.962,42.06994337]
[1772722771416,3.32936645,91.042,90.971,3.59233735]
[1772722771606,10.98266515,91.053,90.978,3.59233735]
[1772722771920,3.32936645,91.052,90.986,3.59233735]
[1772722772424,3.32936645,91.05,90.986,3.59233735]
[1772722773725,3.32936645,91.048,90.991,3.59233735]
[1772722774104,3.32936645,91.048,90.987,38.46703375]
[1772722774305,3.32936645,91.046,90.987,38.46703375]
[1772722774525,3.32936645,91.044,90.987,38.46703375]
[1772722774725,3.32936645,91.042,90.987,38.46703375]
[1772722774928,3.32936645,91.04,90.987,38.46703375]
[1772722775128,3.32936645,91.04,90.955,1.09944478]
[1772722775129,3.32936645,91.036,90.971,10.99251409]
[1772722775326,3.32936645,91.027,90.971,10.99251409]
[1772722775508,3.32936645,91.023,90.966,27.48268924]
[1772722775820,38.45139743,91.024,90.966,27.48268924]
[1772722775821,3.32936645,91.021,90.966,27.48268924]
[1772722776508,3.32936645,91.019,90.966,27.48268924]
[1772722777833,3.32936645,91.017,90.957,3.59233735]
[1772722780414,1.09703252,91.039,90.958,38.47929813]
[1772722780415,3.32936645,91.015,90.958,38.47929813]
[1772722780720,3.32936645,91.015,90.959,3.59233735]
[1772722782731,3.32936645,91.028,90.961,3.59233735]
[1772722783032,3.32936645,91.026,90.961,3.59233735]
[1772722784635,3.32936645,91.024,90.963,3.59233735]
[1772722786331,10.92317918,91.05,90.962,93.44561463]
[1772722786332,3.32936645,91.047,90.966,3.59233735]
[1772722786534,3.32936645,91.047,90.971,0.28432314]
[1772722786718,3.32936645,91.047,90.979,3.59233735]
[1772722786914,3.32936645,91.047,90.986,3.59233735]
[1772722787430,3.32936645,91.045,90.986,3.59233735]
[1772722788026,1.09703252,91.044,90.973,38.47295351]
[1772722788227,3.32936645,91.043,90.974,3.59233735]
[1772722788531,3.32936645,91.029,90.973,10.99227243]
[1772722788734,3.32936645,91.025,90.964,38.47676003]
[1772722788934,3.65755783,91.023,90.964,38.47676003]
[1772722789237,3.65755783,91.021,90.964,42.20346439]
[1772722789739,3.65755783,91.021,90.965,3.72670436]
[1772722790035,3.65755783,91.019,90.965,3.72670436]
[1772722790337,3.65755783,91.017,90.965,3.72670436]
[1772722790919,3.65755783,91.015,90.966,38.47591406]
[1772722791438,3.65755783,91.014,90.966,38.47591406]
[1772722793036,3.65755783,91.012,90.966,27.48279576]
[1772722793619,3.65755783,91.011,90.957,10.99420605]
[1772722793839,3.65755783,91.01,90.957,38.47972118]
[1772722794035,3.65755783,91.008,90.957,38.47972118]
[1772722794642,3.65755783,91.006,90.957,38.47972118]
[1772722795138,3.65755783,91.004,90.947,3.72670436]
[1772722796122,3.65755783,91.004,90.946,38.48437534]
[1772722796123,3.65755783,91.002,90.946,10.99553581]
[1772722796322,3.65755783,90.997,90.946,10.99553581]
[1772722796548,3.65755783,90.995,90.946,10.99553581]
[1772722796845,3.65755783,90.995,90.946,38.48437534]
[1772722797229,3.65755783,90.993,90.937,38.48818412]
[1772722797657,3.65755783,90.993,90.906,44.00129722]
[1772722797658,3.65755783,90.989,90.933,10.99710776]
[1772722797826,3.65755783,90.985,90.933,10.99710776]
[1772722798024,3.65755783,90.985,90.933,38.48987716]
[1772722798223,3.65755783,90.985,90.934,3.72670436]
[1772722798430,3.65755783,90.997,90.936,3.72670436]
[1772722799251,3.65755783,90.997,90.941,3.72670436]
[1772722799424,3.65755783,90.997,90.945,3.72670436]
[1772722799632,3.65755783,90.997,90.947,3.72670436]
[1772722799952,3.65755783,91.027,90.953,3.72670436]
[1772722800152,3.65755783,91.027,90.967,3.72670436]
[1772722800322,1.09703252,91.05,90.967,3.72670436]
[1772722800519,10.98188373,91.06,90.979,3.72670436]
[1772722800750,10.98188373,91.06,90.996,0.28432314]
[1772722800923,27.44836052,91.081,90.997,3.72670436]
[1772722801121,10.97827399,91.089,91.003,3.72670436]
[1772722801344,10.97827399,91.089,90.987,0.28432314]
[1772722801345,0.11112,91.093,91.005,10.98840723]
[1772722801346,10.92317918,91.06,91.005,10.98840723]
[1772722801549,10.92317918,91.04,90.972,10.99239326]
[1772722801741,1.38135566,91.039,90.973,3.72670436]
[1772722801943,10.92317918,91.02,90.949,3.72670436]
[1772722802125,1.38135566,91.019,90.949,3.72670436]
[1772722802320,0.28432314,91.009,90.949,3.72670436]
[1772722802630,3.65755783,91.006,90.934,3.72670436]
[1772722802832,3.65755783,90.995,90.934,3.72670436]
[1772722803149,3.65755783,91.024,90.942,0.14216157]
[1772722803326,10.92317918,91.04,90.948,3.72670436]
[1772722803327,3.65755783,91.022,90.948,3.72670436]
[1772722803518,3.65755783,91.022,90.954,3.72670436]
[1772722803722,3.65755783,91.022,90.956,3.72670436]
[1772722803923,10.92317918,91.05,90.944,126.45144263]
[1772722803924,12.0202117,91.07,90.961,4.0110275]
[1772722804123,39.52900792,91.07,90.973,3.72670436]
[1772722804324,10.92317918,91.05,90.977,3.72670436]
[1772722804525,1.09703252,91.049,90.977,3.72670436]
[1772722804742,1.09703252,91.069,90.959,3.72670436]
[1772722804939,10.92317918,91.05,90.959,3.72670436]
[1772722805144,1.23919409,91.049,90.963,3.72670436]
[1772722805336,0.28432314,91.047,90.967,3.72670436]
[1772722805524,0.28432314,91.047,90.966,93.44150559]
[1772722805525,10.98321764,91.048,90.97,3.72670436]
[1772722805725,10.98201146,91.058,90.979,3.72670436]
[1772722805925,3.32777495,91.067,90.984,4.0110275]
[1772722806136,3.32777495,91.067,90.974,3.69383402]
[1772722806137,3.32777495,91.067,90.991,3.72670436]
[1772722806345,3.32777495,91.083,90.996,3.72670436]
[1772722806524,3.32777495,91.082,91.001,3.72670436]
[1772722806728,3.32777495,91.082,91.007,3.72670436]
[1772722806929,3.33305532,91.079,91.007,3.72670436]
[1772722807124,3.33305532,91.077,91.007,3.72670436]
[1772722807432,3.33305532,91.077,90.987,0.28432314]
[1772722807433,41.76334277,91.074,91.009,3.72670436]
[1772722807637,3.33305532,91.073,91.009,3.72670436]
[1772722807832,3.33827503,91.069,91.009,3.72670436]
[1772722808040,3.33827503,91.065,91.009,3.72670436]
[1772722808230,0.14216157,91.056,91.002,10.98871409]
[1772722808433,10.92317918,91.06,90.993,3.72670436]
[1772722808434,3.33827503,91.047,90.993,3.72670436]
[1772722808736,3.33827503,91.062,90.995,3.72670436]
[1772722809138,1.09703252,91.061,90.995,3.72670436]
[1772722809342,3.3434348,91.06,90.997,3.72670436]
[1772722809740,3.3434348,91.058,90.997,3.72670436]
[1772722810247,3.34799212,91.056,90.997,3.72670436]
[1772722810445,3.34799212,91.046,90.997,3.72670436]
[1772722810945,3.34799212,91.044,90.997,3.72670436]
[1772722811150,1.09703252,91.054,90.997,3.72670436]
[1772722811341,10.98092613,91.067,90.999,3.72670436]
[1772722811538,3.35249711,91.057,90.999,3.72670436]
[1772722811748,3.35249711,91.055,90.999,3.72670436]
[1772722811946,3.35695034,91.053,90.999,3.72670436]
[1772722812245,3.35695034,91.051,90.999,3.72670436]
[1772722813039,3.36135243,91.049,90.999,3.72670436]
[1772722813448,3.36135243,91.049,90.971,43.96995311]
[1772722813449,14.34167569,91.072,91.001,3.72670436]
[1772722813650,3.36135243,91.07,91.001,3.72670436]
[1772722813836,3.36570396,91.066,91.001,3.72670436]
[1772722814037,3.36570396,91.064,91.001,3.72670436]
[1772722814352,3.36570396,91.062,91.001,3.72670436]
[1772722814542,3.36570396,91.056,91.001,3.72670436]
[1772722814726,3.36570396,91.054,91.001,3.72670436]
[1772722814931,3.3700055,91.052,91.001,3.72670436]
[1772722815127,3.3700055,91.064,91.001,3.72670436]
[1772722815352,10.98140847,91.063,91.003,3.72670436]
[1772722815551,10.98140847,91.063,91.002,38.46069316]
[1772722815552,3.3700055,91.076,91.005,3.72670436]
[1772722815755,3.3700055,91.069,91.005,3.72670436]
[1772722815959,11.20499622,91.06,91.005,3.72670436]
[1772722816139,3.37425764,91.056,91.005,3.72670436]
[1772722816339,3.37425764,91.054,90.998,10.98923969]
[1772722816563,3.37425764,91.052,90.999,3.72670436]
[1772722817542,10.98285576,91.051,91.001,3.72670436]
[1772722817956,3.38261595,91.08,91.003,3.72670436]
[1772722818258,3.38261595,91.076,91.007,3.72670436]
[1772722818558,10.97923826,91.081,91.007,3.72670436]
[1772722819052,3.39078337,91.08,91.007,3.72670436]
[1772722819457,38.42817773,91.079,91.009,3.81776771]
[1772722819634,10.97947935,91.079,91.009,3.81776771]
[1772722820056,3.39479685,91.097,91.011,3.81776771]
[1772722820356,10.97715171,91.099,91.013,4.10209085]
[1772722820538,3.39479685,91.092,91.025,3.81776771]
[1772722820736,3.39479685,91.09,91.025,3.81776771]
[1772722820960,3.39876423,91.088,91.025,3.81776771]
[1772722821155,3.39876423,91.086,91.027,3.81776771]
[1772722821479,10.9787561,91.085,91.029,3.81776771]
[1772722822655,3.40268605,91.089,91.029,3.81776771]
[1772722823549,38.4243808,91.088,91.03,38.44886301]
[1772722823759,3.40656282,91.087,91.031,3.81776771]
[1772722824558,10.97839451,91.088,91.031,3.81776771]
[1772722824763,0.11112,91.093,91.031,3.81776771]
[1772722825057,0.11112,91.093,91.036,3.81776771]
[1772722825058,1e-08,91.093,91.036,3.81776771]
[1772722825251,1e-08,91.093,91.042,3.81776771]
[1772722825440,1e-08,91.093,91.046,3.81776771]
[1772722825758,1e-08,91.093,91.051,3.81776771]
[1772722825944,3.41792799,91.141,91.054,3.81776771]
[1772722826153,3.41792799,91.141,91.062,3.81776771]
[1772722826352,10.97119848,91.148,91.066,3.81776771]
[1772722826650,10.97119848,91.148,91.079,3.81776771]
[1772722826969,10.97119848,91.148,91.058,3.69383402]
[1772722826970,3.42162969,91.147,91.087,3.81776771]
[1772722827170,3.42162969,91.139,91.059,3.81776771]
[1772722827467,0.14216157,91.118,91.059,3.81776771]
[1772722827669,3.42528888,91.116,91.059,3.81776771]
[1772722827850,3.42528888,91.113,91.06,14.68185962]
[1772722828163,3.42890603,91.111,91.06,14.68185962]
[1772722828467,3.42890603,91.105,91.049,3.70008936]
[1772722829556,3.43248164,91.103,91.049,3.70008936]
[1772722829890,10.97670742,91.102,91.05,10.98297638]
[1772722830066,14.41272359,91.102,91.051,3.70008936]
[1772722830451,3.43601617,91.1,91.05,10.98297638]
[1772722830651,3.43601617,91.098,91.051,3.70008936]
[1772722832070,3.44296392,91.096,91.053,3.70008936]
[1772722832646,3.44296392,91.096,91.042,3.70008936]
[1772722832846,3.44296392,91.094,91.028,3.70008936]
[1772722833055,3.44637806,91.092,91.028,3.70008936]
[1772722833466,10.9773099,91.097,91.028,3.70008936]
[1772722833646,3.44637806,91.116,91.034,0.28432314]
[1772722833850,3.44637806,91.114,91.037,3.70008936]
[1772722834048,14.42513519,91.113,91.039,3.70008936]
[1772722834448,1.09703252,91.12,91.047,3.70008936]
[1772722834449,10.97458129,91.12,91.047,3.70008936]
[1772722834651,14.42218424,91.138,91.055,3.70008936]
[1772722834953,3.45308914,91.137,91.065,3.70008936]
[1772722835153,3.45308914,91.137,91.067,3.70008936]
[1772722835950,3.45638698,91.135,91.069,3.70008936]
[1772722836370,0.1,91.15,91.072,0.14216157]
[1772722836371,10.97154774,91.145,91.072,0.14216157]
[1772722836673,10.97154774,91.145,91.068,126.27926382]
[1772722836674,3.45638698,91.144,91.087,3.70008936]
[1772722836872,0.1,91.15,91.087,3.70008936]
[1772722837254,3.55964694,91.15,91.097,3.70008936]
[1772722837452,3.45964694,91.148,91.097,3.70008936]
[1772722837651,0.1,91.15,91.097,3.70008936]
[1772722837852,11.07094142,91.15,91.097,3.70008936]
[1772722838053,3.56286946,91.15,91.099,3.70008936]
[1772722838483,0.1,91.15,91.099,3.70008936]
[1772722839966,10.97116777,91.148,91.099,3.70008936]
[1772722840173,3.46920388,91.147,91.101,3.70008936]
[1772722841574,10.97116777,91.148,91.101,3.70008936]
[1772722841755,3.47231663,91.147,91.101,3.70008936]
[1772722841957,0.1,91.15,91.102,38.41847598]
[1772722842262,3.47539362,91.149,91.103,3.70008936]
[1772722842671,0.1,91.15,91.103,3.70008936]
[1772722843864,0.1,91.15,91.105,3.70008936]
[1772722845285,0.1,91.15,91.08,43.91723251]
[1772722845286,3.48441417,91.146,91.095,3.70008936]
[1772722845586,3.48441417,91.138,91.083,3.70008936]
[1772722845765,10.97249196,91.137,91.085,3.70008936]
[1772722846597,3.48735221,91.135,91.085,3.70008936]
[1772722846772,3.48735221,91.133,91.084,10.97887664]
[1772722846964,3.4902565,91.131,91.085,3.70008936]
[1772722847470,3.4902565,91.13,91.085,3.70008936]
[1772722847787,3.4902565,91.128,91.085,3.70008936]
[1772722847990,3.4902565,91.128,91.061,3.69383402]
[1772722847991,1.09703252,91.135,91.087,3.70008936]
[1772722848288,3.49312744,91.147,91.087,3.70008936]
[1772722849789,10.9710474,91.149,91.089,3.82375139]
[1772722850178,0.1,91.15,91.091,3.82375139]
[1772722851171,0.1,91.15,91.093,3.82375139]
[1772722851476,0.1,91.15,91.097,3.82375139]
[1772722852066,0.1,91.15,91.099,3.82375139]
[1772722853189,3.50967368,91.149,91.099,3.82375139]
[1772722854109,3.50967368,91.149,91.078,2.12378963]
[1772722854110,3.51232159,91.143,91.078,2.12378963]
[1772722854278,3.51232159,91.137,91.078,2.12378963]
[1772722854584,3.51232159,91.127,91.078,2.12378963]
[1772722854791,3.51232159,91.127,91.079,3.82375139]
[1772722855888,3.51752652,91.138,91.079,3.82375139]
[1772722856185,3.51752652,91.136,91.081,3.82375139]
[1772722857185,38.40372186,91.137,91.081,3.82375139]
[1772722857389,3.52008423,91.136,91.081,3.82375139]
[1772722858293,3.52261257,91.134,91.079,10.97947935]
[1772722858486,3.52261257,91.132,91.079,10.97947935]
[1772722858685,3.52261257,91.128,91.078,2.12378963]
[1772722858990,0.28432314,91.129,91.078,0.89944591]
[1772722858991,3.52261257,91.126,91.078,0.89944591]
[1772722859286,1.40132223,91.122,91.061,3.82375139]
[1772722859593,1.68564537,91.126,91.061,3.82375139]
[1772722859790,10.92067308,91.12,91.063,3.82375139]
[1772722860085,1.40379282,91.118,91.063,3.82375139]
[1772722860289,10.97502085,91.116,91.065,3.82375139]
[1772722860589,0.28432314,91.126,91.065,3.82375139]
[1772722860590,10.97381647,91.126,91.065,3.82375139]
[1772722860767,10.97381647,91.126,91.067,3.82375139]
[1772722860967,38.40414324,91.136,91.067,3.82375139]
[1772722861201,1.40623503,91.135,91.067,3.82375139]
[1772722861377,1.69055817,91.129,91.067,3.82375139]
[1772722861585,1.40623503,91.127,91.067,3.82375139]
[1772722861793,1.40623503,91.126,91.067,3.82375139]
[1772722862087,1.40623503,91.126,91.062,2.11360036]
[1772722862088,1.55081076,91.117,91.062,2.11360036]
[1772722862273,1.40864919,91.109,91.063,10.98140847]
[1772722862685,1.40864919,91.107,91.063,10.98140847]
[1772722862892,1.69535877,91.099,91.028,3.82375139]
[1772722863089,1.69535877,91.089,91.028,3.82375139]
[1772722864296,1.41339465,91.069,91.019,3.82375139]
[1772722864871,1.41339465,91.069,90.992,43.95980809]
[1772722864872,1.70032778,91.069,90.996,3.82375139]
[1772722865689,3.78288733,91.047,90.942,225.41839852]
[1772722865894,3.78288733,91.077,90.946,3.69383402]
[1772722866094,3.78288733,91.057,90.948,0.14216157]
[1772722866398,0.28432314,91.051,90.953,3.69383402]
[1772722866574,38.43788436,91.056,90.954,12.7500678]
[1772722866575,3.78288733,91.046,90.954,12.7500678]
[1772722866899,3.78288733,91.046,90.954,11.65061094]
[1772722867213,3.78288733,91.046,90.958,0.28432314]
[1772722867371,3.78288733,91.046,90.955,1.09944478]
[1772722867578,93.34914775,91.056,90.876,44.01572938]
[1772722867579,4.06721047,90.989,90.876,44.01572938]
[1772722867800,3.78288733,90.979,90.911,38.49919151]
[1772722868397,10.99166831,90.978,90.911,38.49919151]
[1772722868594,3.78288733,90.979,90.915,0.28432314]
[1772722868777,3.78288733,90.982,90.914,3.69383402]
[1772722869177,3.78288733,90.982,90.911,84.05839583]
[1772722869372,3.78288733,90.977,90.911,40.05931982]
[1772722869571,3.78288733,90.969,90.912,3.82375139]
[1772722869792,10.92067308,90.97,90.912,3.82375139]
[1772722869793,0.28432314,90.966,90.912,3.82375139]
[1772722870007,3.78288733,90.965,90.912,3.82375139]
[1772722870171,3.78288733,90.963,90.914,3.82375139]
[1772722870499,3.78288733,90.949,90.911,1.56012831]
[1772722870878,3.78288733,90.949,90.912,10.99964801]
[1772722871094,3.78288733,90.949,90.911,1.56012831]
[1772722871396,3.78288733,90.937,90.886,11.0027947]
[1772722871612,3.78288733,90.94,90.887,3.82375139]
[1772722871782,4.06721047,90.961,90.887,3.82375139]
[1772722871973,10.92067308,90.96,90.887,3.82375139]
[1772722872275,10.92067308,90.94,90.889,3.82375139]
[1772722872476,0.28432314,90.946,90.88,0.2]
[1772722872477,3.78288733,90.909,90.88,1e-08]
[1772722872675,3.78288733,90.899,90.858,0.69706575]
[1772722872871,3.78288733,90.887,90.84,11.00833256]
[1772722873079,3.78288733,90.887,90.77,44.06696913]
[1772722873080,3.78288733,90.869,90.793,3.82375139]
[1772722873277,3.78288733,90.865,90.793,3.82375139]
[1772722873608,10.95467222,90.86,90.793,3.82375139]
[1772722873811,3.78288733,90.857,90.793,3.82375139]
[1772722874275,4.06721047,90.869,90.801,3.82375139]
[1772722874476,4.06721047,90.859,90.801,3.82375139]
[1772722874906,3.78288733,90.859,90.801,3.82375139]
[1772722875099,3.78288733,90.855,90.801,3.82375139]
[1772722875974,3.78288733,90.899,90.802,3.82375139]
[1772722876185,3.78288733,90.896,90.811,3.82375139]
[1772722876396,3.78288733,90.894,90.817,3.82375139]
[1772722876600,3.69383402,90.931,90.812,3.83599559]
[1772722876601,3.78288733,90.907,90.827,3.82375139]
[1772722876781,3.78288733,90.907,90.837,3.82375139]
[1772722877098,11.00061603,90.904,90.837,3.82375139]
[1772722877291,3.78288733,90.903,90.837,3.82375139]
[1772722878202,3.78288733,90.915,90.847,3.82375139]
[1772722878378,10.99839132,90.923,90.849,3.82375139]
[1772722878574,3.78288733,90.922,90.851,3.82375139]
[1772722878795,3.78288733,90.922,90.857,3.72668737]
[1772722879299,3.81750424,90.939,90.857,3.72668737]
[1772722879499,3.81750424,90.935,90.859,3.72668737]
[1772722879683,3.81750424,90.933,90.859,3.72668737]
[1772722879995,38.48606804,90.942,90.859,3.72668737]
[1772722879996,3.81750424,90.925,90.859,3.72668737]
[1772722880294,0.28432314,90.935,90.861,3.72668737]
[1772722880295,3.81750424,90.935,90.861,3.72668737]
[1772722880499,3.81750424,90.935,90.863,3.72668737]
[1772722880698,3.81750424,90.934,90.864,0.28432314]